bitfinex-derivatives/quotes_BTCF0:USTF0_20241013
["timestamp","ask_amount","ask_price","bid_price","bid_amount"]
[1728777600462,0.1,63241.0,63240.0,0.0004]
[1728777602556,0.1,63241.0,63240.0,0.10328075]
[1728777602755,0.1,63241.0,63240.0,0.10428075]
[1728777603561,0.02821507,63246.0,63240.0,0.20428075]
[1728777603761,0.3608,63244.0,63240.0,0.32691066]
[1728777604247,0.1,63241.0,63240.0,0.22691066]
[1728777604450,0.1,63241.0,63240.0,0.10428075]
[1728777604648,0.1,63241.0,63240.0,0.0014]
[1728777605051,0.1,63241.0,63240.0,0.0034]
[1728777606148,0.1282934,63241.0,63240.0,0.0034]
[1728777606346,0.1282934,63241.0,63240.0,0.0004]
[1728777606748,0.1292934,63241.0,63240.0,0.0004]
[1728777606949,0.1292934,63241.0,63240.0,0.0014]
[1728777608255,0.0292934,63241.0,63240.0,0.1004]
[1728777608550,0.0352934,63241.0,63240.0,0.1014]
[1728777609151,0.007,63241.0,63240.0,0.1014]
[1728777613368,0.007,63241.0,63240.0,0.20360128]
[1728777613559,0.007,63241.0,63240.0,0.23198139]
[1728777614564,0.3608,63243.0,63240.0,0.35377972]
[1728777614764,0.3608,63243.0,63242.0,0.09477876]
[1728777614959,0.3608,63243.0,63242.0,0.19738004]
[1728777615259,0.3608,63243.0,63242.0,0.10260128]
[1728777615463,0.3608,63243.0,63242.0,0.19738004]
[1728777615761,0.3618,63243.0,63242.0,0.29738004]
[1728777616166,0.3558,63243.0,63242.0,0.29738004]
[1728777616358,0.3558,63243.0,63242.0,0.29938004]
[1728777616559,0.3588,63243.0,63242.0,0.29938004]
[1728777616862,0.3588,63243.0,63242.0,0.20460128]
[1728777618357,0.004,63243.0,63242.0,0.20460128]
[1728777621266,0.004,63243.0,63242.0,0.29936797]
[1728777621454,0.004,63243.0,63242.0,0.42618454]
[1728777621764,0.3608,63254.0,63242.0,1.52329159]
[1728777621954,0.3608,63254.0,63253.0,0.1004]
[1728777622156,0.3608,63254.0,63253.0,0.20219444]
[1728777622564,0.3608,63254.0,63253.0,0.28113495]
[1728777622761,0.3608,63254.0,63253.0,0.20219444]
[1728777623261,0.3638,63254.0,63253.0,0.28203956]
[1728777623670,0.3638,63254.0,63253.0,0.18032206]
[1728777623860,0.3638,63254.0,63253.0,0.28196505]
[1728777624061,0.003,63254.0,63253.0,0.20304299]
[1728777624757,0.003,63254.0,63253.0,1.47207785]
[1728777624959,0.3608,63265.0,63253.0,1.51207409]
[1728777625166,0.3608,63265.0,63264.0,0.1]
[1728777625367,0.3608,63265.0,63264.0,0.1004]
[1728777626962,0.3608,63265.0,63264.0,0.18029056]
[1728777627161,0.3608,63265.0,63264.0,0.1014]
[1728777627572,0.3608,63265.0,63264.0,0.1024]
[1728777627867,0.00237139,63268.0,63264.0,0.1024]
[1728777628068,0.00237139,63268.0,63267.0,0.1004]
[1728777629063,0.00237139,63268.0,63267.0,0.06336436]
[1728777629255,0.00237139,63268.0,63267.0,0.1004]
[1728777629454,0.00237139,63268.0,63267.0,0.1014]
[1728777629664,0.1,63276.0,63267.0,0.1014]
[1728777629867,0.1,63276.0,63275.0,0.0004]
[1728777630669,0.17903,63276.0,63275.0,0.0004]
[1728777631964,0.38939232,63280.0,63275.0,0.0004]
[1728777631965,0.079025,63281.0,63279.0,0.079026]
[1728777632163,0.079025,63281.0,63280.0,0.1004]
[1728777633567,0.079025,63281.0,63280.0,0.1014]
[1728777634261,0.079025,63281.0,63280.0,0.0014]
[1728777634262,0.179025,63281.0,63280.0,0.0014]
[1728777634860,0.179025,63281.0,63280.0,0.0024]
[1728777635270,0.079025,63281.0,63280.0,0.0024]
[1728777641073,0.439825,63281.0,63280.0,0.0024]
[1728777648667,0.439825,63281.0,63280.0,0.04960319]
[1728777649065,0.439825,63281.0,63280.0,0.0024]
[1728777649773,0.439825,63281.0,63280.0,0.04963865]
[1728777650279,0.439825,63281.0,63280.0,0.0024]
[1728777651281,0.439825,63281.0,63280.0,0.06536436]
[1728777652274,0.439825,63281.0,63280.0,0.0024]
[1728777652975,0.439825,63281.0,63280.0,0.1024]
[1728777653471,0.3608,63281.0,63280.0,0.755505]
[1728777653684,0.3608,63281.0,63280.0,0.75604274]
[1728777653876,0.3608,63291.0,63280.0,0.67701774]
[1728777654175,0.3608,63291.0,63290.0,0.16350943]
[1728777654176,0.439812,63291.0,63290.0,0.16350943]
[1728777654374,0.439812,63291.0,63290.0,0.1004]
[1728777655680,0.439812,63291.0,63290.0,0.18028678]
[1728777656072,0.439812,63291.0,63290.0,0.28046891]
[1728777656278,0.439812,63291.0,63290.0,0.28038919]
[1728777656478,0.079012,63291.0,63290.0,0.28038919]
[1728777656777,0.079012,63291.0,63290.0,0.20150241]
[1728777656968,0.079012,63291.0,63290.0,0.20250241]
[1728777657173,0.079012,63291.0,63290.0,0.28137667]
[1728777657375,0.439812,63291.0,63290.0,0.28137667]
[1728777657582,0.439812,63291.0,63290.0,0.1014]
[1728777657768,0.439812,63291.0,63290.0,0.1024]
[1728777659067,0.079012,63291.0,63290.0,0.1024]
[1728777659466,0.4608,63300.0,63290.0,0.1024]
[1728777659467,0.3608,63300.0,63290.0,0.1024]
[1728777659671,0.4398,63300.0,63299.0,0.1004]
[1728777660183,0.4398,63300.0,63299.0,0.0004]
[1728777661177,0.5398,63300.0,63299.0,0.0004]
[1728777661478,1.71372,63300.0,63299.0,0.0004]
[1728777661670,1.71372,63300.0,63299.0,1e-06]
[1728777662076,1.61372,63300.0,63299.0,1e-06]
[1728777662473,1.51372,63300.0,63299.0,1e-06]
[1728777669682,1.87452,63300.0,63299.0,1e-06]
[1728777685489,1.97452,63300.0,63299.0,1e-06]
[1728777685685,0.179015,63288.0,63287.0,0.0473095]
[1728777685893,0.079017,63287.0,63286.0,0.0473095]
[1728777687212,0.079017,63287.0,63284.0,0.0328]
[1728777687213,0.079019,63285.0,63284.0,0.0328]
[1728777688387,0.800619,63285.0,63284.0,0.0328]
[1728777689197,0.800619,63285.0,63284.0,0.0338]
[1728777689588,0.800619,63285.0,63284.0,0.0348]
[1728777690592,0.079019,63285.0,63284.0,0.0348]
[1728777690902,0.800619,63285.0,63284.0,0.0348]
[1728777691093,0.079019,63285.0,63284.0,0.0348]
[1728777691292,0.800619,63285.0,63284.0,0.0348]
[1728777691594,0.800619,63285.0,63284.0,0.09802389]
[1728777693192,0.079019,63285.0,63284.0,0.09802389]
[1728777693387,0.800619,63285.0,63284.0,0.09802389]
[1728777693996,0.800619,63285.0,63284.0,0.0348]
[1728777694404,0.800619,63285.0,63284.0,0.09804108]
[1728777696204,0.800619,63285.0,63284.0,0.0348]
[1728777697109,0.3608,63289.0,63284.0,0.60976529]
[1728777697296,0.079015,63288.0,63287.0,0.0790396]
[1728777697496,0.3608,63297.0,63287.0,0.19559397]
[1728777697702,0.079008,63295.0,63292.0,0.07901]
[1728777697901,0.3608,63297.0,63292.0,0.15802304]
[1728777698090,0.3608,63297.0,63296.0,0.1004]
[1728777698091,0.439804,63297.0,63296.0,0.1004]
[1728777698302,0.439804,63297.0,63296.0,0.16357533]
[1728777699404,0.439804,63297.0,63296.0,0.1024]
[1728777700494,0.439804,63297.0,63296.0,0.0024]
[1728777701096,0.079004,63297.0,63296.0,0.0024]
[1728777701297,0.439804,63297.0,63296.0,0.0024]
[1728777701692,0.439804,63297.0,63296.0,0.0497443]
[1728777701894,0.439804,63297.0,63296.0,0.04974441]
[1728777702108,0.439804,63297.0,63296.0,0.0024]
[1728777702296,0.439804,63297.0,63296.0,0.04974422]
[1728777703408,0.079004,63297.0,63296.0,0.0024]
[1728777703607,0.439804,63297.0,63296.0,0.0024]
[1728777704102,0.439804,63297.0,63296.0,0.04974422]
[1728777704501,0.439804,63297.0,63296.0,0.0024]
[1728777704699,0.439804,63297.0,63296.0,0.04974422]
[1728777705095,0.439804,63297.0,63296.0,0.0024]
[1728777706808,0.079004,63297.0,63296.0,0.0024]
[1728777707004,0.439804,63297.0,63296.0,0.0024]
[1728777707410,0.079004,63297.0,63296.0,0.0024]
[1728777707611,0.439804,63297.0,63296.0,0.0024]
[1728777708915,0.079004,63297.0,63296.0,0.0024]
[1728777709116,0.439804,63297.0,63296.0,0.0024]
[1728777711225,0.3608,63304.0,63296.0,0.0024]
[1728777711226,0.3608,63313.0,63296.0,1.22636]
[1728777711518,0.439784,63313.0,63312.0,0.0004]
[1728777712810,0.439784,63313.0,63301.0,0.04729468]
[1728777712811,0.3608,63313.0,63301.0,0.04729468]
[1728777713010,0.3608,63313.0,63299.0,0.06305957]
[1728777713011,0.439798,63302.0,63299.0,0.04729468]
[1728777713221,0.079002,63299.0,63298.0,0.04729468]
[1728777713913,0.079003,63298.0,63297.0,0.04729468]
[1728777714312,0.079003,63298.0,63296.0,0.14446457]
[1728777714515,0.0632,63301.0,63296.0,0.14446457]
[1728777714713,0.079004,63297.0,63296.0,0.0014]
[1728777715421,0.079004,63297.0,63296.0,0.0004]
[1728777715617,0.079004,63297.0,63296.0,0.0014]
[1728777715917,0.079004,63297.0,63296.0,0.0024]
[1728777717119,0.079004,63297.0,63296.0,0.049667]
[1728777717321,0.079004,63297.0,63296.0,0.0024]
[1728777718008,0.229004,63297.0,63296.0,0.0024]
[1728777719109,0.589804,63297.0,63296.0,0.0024]
[1728777720215,0.439804,63297.0,63296.0,0.0024]
[1728777723114,0.439804,63297.0,63293.0,0.04726954]
[1728777723315,0.439804,63297.0,63291.0,0.06305957]
[1728777723316,0.15,63294.0,63291.0,0.06305957]
[1728777723520,0.07901,63292.0,63291.0,0.06305957]
[1728777724433,0.079015,63289.0,63288.0,0.07901304]
[1728777725331,0.079014,63289.0,63288.0,0.10031701]
[1728777725633,0.079014,63289.0,63288.0,0.10131701]
[1728777725634,0.080014,63289.0,63288.0,0.10131701]
[1728777726340,0.080014,63289.0,63288.0,0.18033201]
[1728777726532,0.080014,63289.0,63288.0,0.28033201]
[1728777727443,0.080014,63289.0,63288.0,0.28133201]
[1728777732242,0.001,63289.0,63288.0,0.28133201]
[1728777732945,0.001,63289.0,63288.0,1.35014766]
[1728777733142,0.001,63289.0,63288.0,1.45014766]
[1728777733547,0.001,63289.0,63288.0,1.35533201]
[1728777733744,0.001,63289.0,63288.0,1.45005695]
[1728777734452,0.001,63289.0,63288.0,1.3553034]
[1728777738155,0.001,63289.0,63288.0,0.7553034]
[1728777738951,0.001,63289.0,63288.0,0.85005694]
[1728777739249,0.001,63289.0,63288.0,0.7553034]
[1728777739754,0.001,63289.0,63288.0,0.85005753]
[1728777739956,0.080014,63289.0,63288.0,0.27605753]
[1728777740147,0.080014,63289.0,63288.0,0.1813034]
[1728777742449,0.080014,63289.0,63288.0,0.27605753]
[1728777742948,0.080014,63289.0,63288.0,0.1813034]
[1728777743350,0.080014,63289.0,63288.0,0.18142551]
[1728777747258,0.080014,63289.0,63288.0,0.30117299]
[1728777747659,0.080014,63289.0,63288.0,0.18142551]
[1728777748064,0.080014,63289.0,63288.0,0.1815232]
[1728777748265,0.001,63289.0,63288.0,0.30132432]
[1728777750660,0.001,63289.0,63288.0,0.40132432]
[1728777751058,0.001,63289.0,63288.0,0.87532432]
[1728777751258,0.001,63289.0,63288.0,0.90016242]
[1728777751461,0.001,63289.0,63288.0,0.89805549]
[1728777752562,0.001,63289.0,63288.0,0.90338549]
[1728777752779,0.001,63289.0,63288.0,0.89289521]
[1728777752952,0.001,63289.0,63288.0,0.42877769]
[1728777753268,0.0627,63299.0,63298.0,0.079003]
[1728777753464,0.0627,63299.0,63298.0,0.27963384]
[1728777754451,0.142702,63299.0,63298.0,0.27963384]
[1728777756769,0.141702,63299.0,63298.0,0.27963384]
[1728777757163,0.141702,63299.0,63298.0,0.30791016]
[1728777757356,0.141702,63299.0,63298.0,0.17963384]
[1728777757556,0.141702,63299.0,63298.0,0.02986756]
[1728777757757,0.141702,63299.0,63294.0,0.079008]
[1728777757758,0.079007,63295.0,63294.0,0.079008]
[1728777758668,0.079009,63293.0,63292.0,0.1]
[1728777759667,0.079009,63293.0,63292.0,0.17901]
[1728777760570,0.079009,63293.0,63292.0,0.18101]
[1728777760963,0.079009,63293.0,63292.0,0.18401]
[1728777762665,0.079009,63293.0,63292.0,0.17901]
[1728777765173,0.079009,63293.0,63292.0,0.27901]
[1728777765366,0.141702,63299.0,63295.0,0.079006]
[1728777765367,0.079005,63297.0,63295.0,0.079006]
[1728777765575,0.079004,63297.0,63296.0,0.1004]
[1728777766662,0.079004,63297.0,63296.0,0.179405]
[1728777767376,0.079004,63297.0,63296.0,0.181405]
[1728777772271,0.0627,63299.0,63298.0,0.079003]
[1728777772473,0.109,63301.0,63300.0,0.079]
[1728777772778,0.109,63301.0,63300.0,0.27833618]
[1728777773571,0.079,63301.0,63300.0,0.27833618]
[1728777774364,0.079,63301.0,63300.0,0.27933618]
[1728777774564,0.078995,63305.0,63304.0,0.078993]
[1728777774770,0.078995,63305.0,63304.0,0.179393]
[1728777775787,0.078995,63305.0,63304.0,0.180393]
[1728777776781,0.078995,63305.0,63304.0,0.181393]
[1728777785577,0.078995,63305.0,63304.0,0.1024]
[1728777785992,0.078995,63305.0,63304.0,0.0024]
[1728777786202,0.078995,63305.0,63304.0,0.06554152]
[1728777786494,0.178995,63305.0,63304.0,0.06554152]
[1728777787192,0.178995,63305.0,63304.0,0.0024]
[1728777789283,0.078995,63305.0,63304.0,0.0024]
[1728777792081,0.078995,63305.0,63304.0,0.06554152]
[1728777792286,0.078995,63305.0,63304.0,0.0024]
[1728777793087,0.078995,63305.0,63304.0,0.06554152]
[1728777794090,0.078995,63305.0,63304.0,0.0024]
[1728777796991,0.078995,63305.0,63304.0,0.00773]
[1728777800797,0.078995,63305.0,63304.0,0.1855919]
[1728777800991,0.078995,63305.0,63304.0,0.1065914]
[1728777801188,0.078995,63305.0,63304.0,0.18559173]
[1728777801399,0.078995,63305.0,63304.0,0.1065914]
[1728777803116,0.078995,63305.0,63304.0,0.1855864]
[1728777803305,0.078995,63305.0,63304.0,0.26458665]
[1728777803598,0.078995,63305.0,63304.0,0.1855864]
[1728777804714,0.078995,63305.0,63304.0,0.26458423]
[1728777804892,0.078995,63305.0,63304.0,0.1855864]
[1728777805092,0.078995,63305.0,63304.0,0.26458416]
[1728777806897,0.078995,63305.0,63304.0,0.1855864]
[1728777807705,0.078991,63309.0,63308.0,0.07899]
[1728777808006,0.078991,63309.0,63308.0,0.17939]
[1728777809007,0.078991,63309.0,63308.0,0.18039]
[1728777809904,0.078991,63309.0,63308.0,0.2791044]
[1728777810406,0.078991,63309.0,63308.0,0.2801044]
[1728777811693,0.078991,63309.0,63308.0,0.30814739]
[1728777812397,0.07109291,63309.0,63308.0,0.30814739]
[1728777813003,0.07109291,63309.0,63308.0,0.20943299]
[1728777813305,0.07109291,63309.0,63308.0,0.30789904]
[1728777815407,0.078983,63314.0,63308.0,0.22885743]
[1728777815704,0.078983,63314.0,63313.0,0.179384]
[1728777817602,0.03949635,63314.0,63313.0,0.179384]
[1728777818303,0.03949635,63314.0,63313.0,0.180384]
[1728777819200,0.03949635,63314.0,63313.0,0.181384]
[1728777827902,0.03950004,63319.0,63313.0,0.181384]
[1728777828106,0.03950004,63319.0,63318.0,0.14730666]
[1728777828307,0.03950004,63319.0,63318.0,0.14770666]
[1728777829306,0.03950004,63319.0,63318.0,0.1004]
[1728777829814,0.03950004,63319.0,63318.0,0.1014]
[1728777831515,0.03950004,63319.0,63318.0,0.1024]
[1728777831913,0.03950004,63319.0,63318.0,0.0024]
[1728777833819,0.40030004,63319.0,63318.0,0.0024]
[1728777834321,0.03950004,63319.0,63318.0,0.0024]
[1728777834521,0.40030004,63319.0,63318.0,0.0024]
[1728777834710,0.03950004,63319.0,63318.0,0.0024]
[1728777834916,0.40030004,63319.0,63318.0,0.0024]
[1728777835318,0.40030004,63319.0,63318.0,0.06547555]
[1728777837216,0.03950004,63319.0,63318.0,0.0024]
[1728777837421,0.40030004,63319.0,63318.0,0.0024]
[1728777837725,0.03950004,63319.0,63318.0,0.0024]
[1728777837922,0.40030004,63319.0,63318.0,0.0024]
[1728777839023,0.03950004,63319.0,63318.0,0.0024]
[1728777839222,0.40030004,63319.0,63318.0,0.0024]
[1728777841721,0.50030004,63319.0,63318.0,0.0024]
[1728777843024,0.40030004,63319.0,63318.0,0.0024]
[1728777843523,0.40030004,63319.0,63318.0,0.0014]
[1728777844024,0.40030004,63319.0,63318.0,0.0024]
[1728777848822,0.03950004,63319.0,63318.0,0.0024]
[1728777849024,0.40030004,63319.0,63318.0,0.0024]
[1728777852734,0.03950004,63319.0,63318.0,0.0024]
[1728777852932,0.40030004,63319.0,63318.0,0.0024]
[1728777853326,0.03950004,63319.0,63318.0,0.0024]
[1728777853529,0.40030004,63319.0,63318.0,0.0024]
[1728777854328,0.03950004,63319.0,63318.0,0.0024]
[1728777854540,0.40030004,63319.0,63318.0,0.0024]
[1728777855923,0.03950004,63319.0,63318.0,0.0024]
[1728777856129,0.40030004,63319.0,63318.0,0.0024]
[1728777862135,0.40030004,63319.0,63318.0,0.0014]
[1728777862340,0.40030004,63319.0,63318.0,0.0024]
[1728777862739,0.03950004,63319.0,63318.0,0.0024]
[1728777863141,0.40030004,63319.0,63318.0,0.0024]
[1728777864936,0.40030004,63319.0,63318.0,0.1024]
[1728777865748,0.40030004,63319.0,63318.0,0.18129652]
[1728777866542,0.40030004,63319.0,63318.0,0.42787647]
[1728777867549,0.40030004,63319.0,63318.0,0.32787647]
[1728777868346,0.40030004,63319.0,63318.0,0.32796771]
[1728777869341,0.40030004,63319.0,63318.0,0.32802683]
[1728777871947,0.03950004,63319.0,63318.0,0.32802683]
[1728777872147,0.03950004,63319.0,63318.0,0.24903907]
[1728777875754,0.03950004,63319.0,63318.0,0.24803907]
[1728777875950,0.03950004,63319.0,63318.0,0.24903907]
[1728777878949,0.03950004,63319.0,63318.0,0.24885998]
[1728777880754,0.03950004,63319.0,63318.0,0.150458]
[1728777881858,0.03950004,63319.0,63318.0,0.24920145]
[1728777888353,0.03950004,63319.0,63318.0,0.32815249]
[1728777889562,0.03950004,63319.0,63318.0,0.24920145]
[1728777890567,0.03950004,63319.0,63318.0,0.26183145]
[1728777893569,0.03950004,63319.0,63318.0,0.26235768]
[1728777894076,0.03950004,63319.0,63318.0,0.34132835]
[1728777894278,0.03950004,63319.0,63318.0,0.26235768]
[1728777894665,0.03950004,63319.0,63318.0,0.34133373]
[1728777894966,0.03950004,63319.0,63318.0,0.26235768]
[1728777899370,0.03950004,63319.0,63318.0,0.163088]
[1728777899566,0.03950004,63319.0,63318.0,0.26245095]
[1728777900666,0.03950004,63319.0,63318.0,0.27824095]
[1728777904672,0.078973,63323.0,63322.0,0.078972]
[1728777904872,0.078973,63323.0,63322.0,0.179372]
[1728777905279,0.3608,63325.0,63324.0,0.07897]
[1728777905773,0.3608,63325.0,63324.0,0.07937]
[1728777905971,0.3608,63325.0,63324.0,0.17854118]
[1728777906370,0.439769,63325.0,63324.0,0.17854118]
[1728777906571,0.439769,63325.0,63324.0,0.17850666]
[1728777906970,0.439769,63325.0,63324.0,0.17950666]
[1728777907577,0.439769,63325.0,63324.0,0.18050666]
[1728777908181,0.439769,63325.0,63324.0,0.1804484]
[1728777908384,0.439769,63325.0,63324.0,0.0024]
[1728777910077,0.439769,63325.0,63324.0,0.08137]
[1728777910281,0.078969,63325.0,63324.0,0.08137]
[1728777917293,0.078969,63325.0,63324.0,0.09716]
[1728777920683,0.078969,63325.0,63324.0,0.01819]
[1728777920889,0.078969,63325.0,63324.0,0.11819]
[1728777921892,0.078969,63325.0,63324.0,0.19710174]
[1728777922785,0.078969,63325.0,63324.0,0.11819]
[1728777923297,0.078969,63325.0,63324.0,0.1872]
[1728777923502,0.078969,63325.0,63324.0,0.0872]
[1728777924802,0.10801887,63325.0,63324.0,0.0872]
[1728777925791,0.46881887,63325.0,63324.0,0.0872]
[1728777927890,0.10801887,63325.0,63324.0,0.0872]
[1728777928089,0.46881887,63325.0,63324.0,0.0872]
[1728777934494,0.10801887,63325.0,63324.0,0.0872]
[1728777934695,0.46881887,63325.0,63324.0,0.0872]
[1728777939398,0.46881887,63325.0,63324.0,0.09983]
[1728777940591,0.46881887,63325.0,63324.0,0.16295684]
[1728777940897,0.46881887,63325.0,63324.0,0.09983]
[1728777941094,0.46881887,63325.0,63324.0,0.16295584]
[1728777942199,0.46881887,63325.0,63324.0,0.09983]
[1728777951000,0.46881887,63325.0,63324.0,0.16295472]
[1728777951201,0.46881887,63325.0,63324.0,0.09983]
[1728777953101,0.10801887,63325.0,63324.0,0.09983]
[1728777953300,0.46881887,63325.0,63324.0,0.09983]
[1728777953498,0.46881887,63325.0,63324.0,0.16297273]
[1728777954308,0.10801887,63325.0,63324.0,0.16297273]
[1728777954604,0.46881887,63325.0,63324.0,0.16297273]
[1728777955901,0.46881887,63325.0,63324.0,0.09983]
[1728777958913,0.46881887,63325.0,63324.0,0.16296778]
[1728777959415,0.46881887,63325.0,63324.0,0.09983]
[1728777959604,0.46881887,63325.0,63324.0,0.16297074]
[1728777961008,0.46881887,63325.0,63324.0,0.09983]
[1728777977219,0.10801887,63325.0,63324.0,0.09983]
[1728777977416,0.46881887,63325.0,63324.0,0.09983]
[1728778015357,0.46881887,63325.0,63324.0,0.09883]
[1728778015654,0.46881887,63325.0,63324.0,0.09983]
[1728778017055,0.10801887,63325.0,63324.0,0.09983]
[1728778017255,0.46881887,63325.0,63324.0,0.09983]
[1728778019159,0.10801887,63325.0,63324.0,0.09983]
[1728778019766,0.46881887,63325.0,63324.0,0.09983]
[1728778022462,0.10801887,63325.0,63324.0,0.09983]
[1728778022665,0.46881887,63325.0,63324.0,0.09983]
[1728778023650,0.10801887,63325.0,63324.0,0.09983]
[1728778023856,0.46881887,63325.0,63324.0,0.09983]
[1728778024565,0.10801887,63325.0,63324.0,0.09983]
[1728778024948,0.46881887,63325.0,63324.0,0.09983]
[1728778026651,0.439769,63325.0,63324.0,0.09983]
[1728778026955,0.3608,63325.0,63324.0,0.1788]
[1728778027567,0.3608,63325.0,63324.0,0.1778]
[1728778027863,0.3608,63325.0,63324.0,0.27795399]
[1728778030673,0.439769,63325.0,63324.0,0.27795399]
[1728778032365,0.439769,63325.0,63324.0,0.25764599]
[1728778032861,0.439769,63325.0,63324.0,0.1788]
[1728778033670,0.078969,63325.0,63324.0,0.1788]
[1728778033870,0.078969,63325.0,63324.0,0.09983]
[1728778050282,0.078969,63325.0,63324.0,0.17867599]
[1728778052383,0.078969,63325.0,63324.0,0.27764705]
[1728778052984,0.078969,63325.0,63324.0,0.37764705]
[1728778056286,0.078969,63325.0,63324.0,0.29880106]
[1728778061995,0.078969,63325.0,63324.0,0.29886417]
[1728778062189,0.078969,63325.0,63324.0,0.37783417]
[1728778065993,0.3608,63327.0,63326.0,0.078968]
[1728778066191,0.439767,63327.0,63326.0,0.15826955]
[1728778066395,0.439767,63327.0,63326.0,0.25734716]
[1728778066396,0.3608,63327.0,63326.0,0.25734716]
[1728778066904,0.3608,63327.0,63326.0,0.17844561]
[1728778067801,0.3608,63327.0,63326.0,0.19523561]
[1728778068005,0.439767,63327.0,63326.0,0.26506561]
[1728778070899,0.439767,63327.0,63326.0,0.34394608]
[1728778071098,0.439767,63327.0,63326.0,0.26506561]
[1728778071403,0.439767,63327.0,63326.0,0.34394408]
[1728778071704,0.439767,63327.0,63326.0,0.34392499]
[1728778074301,0.439767,63327.0,63326.0,0.26504652]
[1728778074697,0.439767,63327.0,63326.0,0.36504652]
[1728778076401,0.439767,63327.0,63326.0,0.36503447]
[1728778079608,0.439767,63327.0,63326.0,0.26503447]
[1728778079915,0.439767,63327.0,63326.0,0.36503447]
[1728778080595,0.439767,63327.0,63326.0,0.36494806]
[1728778080797,0.439767,63327.0,63326.0,0.36490782]
[1728778081207,0.439767,63327.0,63326.0,0.37753782]
[1728778081410,0.078967,63327.0,63326.0,0.37753782]
[1728778081611,0.439767,63327.0,63326.0,0.37753782]
[1728778088813,0.078967,63327.0,63326.0,0.37753782]
[1728778089116,0.439767,63327.0,63326.0,0.37753782]
[1728778091024,0.078967,63327.0,63326.0,0.37753782]
[1728778091205,0.439767,63327.0,63326.0,0.37753782]
[1728778092012,0.439767,63327.0,63326.0,0.27753782]
[1728778093615,0.078967,63327.0,63326.0,0.27753782]
[1728778093809,0.439767,63327.0,63326.0,0.27753782]
[1728778094516,0.439767,63327.0,63326.0,0.27756546]
[1728778096812,0.439767,63327.0,63326.0,0.09965]
[1728778097530,0.539767,63327.0,63326.0,0.09965]
[1728778100223,0.539767,63327.0,63326.0,0.16275033]
[1728778101328,1.613487,63327.0,63326.0,0.01263]
[1728778101547,0.078975,63320.0,63318.0,0.0004]
[1728778101734,0.522,63319.0,63309.0,0.09710257]
[1728778101935,0.522,63319.0,63309.0,0.00236938]
[1728778101936,0.078983,63314.0,63309.0,0.00236938]
[1728778102686,0.078983,63314.0,63313.0,0.04771444]
[1728778102932,0.078983,63314.0,63309.0,0.00236938]
[1728778102933,0.078988,63310.0,63309.0,0.00236938]
[1728778103130,0.538848,63310.0,63309.0,0.00236938]
[1728778104117,0.538848,63310.0,63309.0,0.00436938]
[1728778104321,0.538848,63310.0,63309.0,0.04926601]
[1728778105352,0.638848,63310.0,63309.0,0.05126601]
[1728778105554,0.638848,63310.0,63287.0,0.09684142]
[1728778105555,0.079,63300.0,63287.0,0.09684142]
[1728778105752,0.179014,63289.0,63288.0,0.09902482]
[1728778105950,0.07902,63284.0,63282.0,0.09473319]
[1728778106152,0.07902,63284.0,63283.0,0.09857537]
[1728778106464,0.1,63289.0,63281.0,0.0318]
[1728778106465,0.079022,63283.0,63281.0,0.0318]
[1728778106742,0.439822,63283.0,63282.0,0.1]
[1728778106929,0.079023,63282.0,63281.0,0.0318]
[1728778107345,0.065032,63275.0,63267.0,0.0976391]
[1728778107551,0.079042,63267.0,63266.0,0.3608]
[1728778107775,0.079042,63267.0,63266.0,0.45971158]
[1728778107946,0.1,63268.0,63259.0,0.0302]
[1728778107947,0.4608,63268.0,63259.0,0.0302]
[1728778108248,0.4608,63268.0,63256.0,0.0326]
[1728778108249,0.079054,63257.0,63256.0,0.0326]
[1728778108636,0.065054,63257.0,63256.0,0.0326]
[1728778109334,0.36228,63260.0,63256.0,0.0326]
[1728778109533,0.3608,63260.0,63259.0,0.0004]
[1728778110635,0.3618,63260.0,63259.0,0.0004]
[1728778111625,0.001,63260.0,63259.0,0.0004]
[1728778111826,0.001,63260.0,63259.0,0.079451]
[1728778112026,0.001,63260.0,63259.0,0.091451]
[1728778112027,0.002,63260.0,63259.0,0.091451]
[1728778113644,0.00177405,63260.0,63259.0,0.091451]
[1728778116433,0.00177405,63260.0,63259.0,0.100971]
[1728778118637,0.03437124,63280.0,63259.0,0.461771]
[1728778118839,0.03437124,63280.0,63274.0,0.0004]
[1728778119033,0.439832,63275.0,63274.0,0.0004]
[1728778119835,0.440832,63275.0,63274.0,0.0004]
[1728778120444,0.444832,63275.0,63274.0,0.0004]
[1728778121343,0.445832,63275.0,63274.0,0.0004]
[1728778122340,0.447832,63275.0,63274.0,0.0004]
[1728778125546,0.008,63275.0,63274.0,0.1004]
[1728778125846,0.008,63275.0,63274.0,0.179433]
[1728778132252,0.008,63275.0,63274.0,0.20827932]
[1728778135151,0.008,63275.0,63274.0,0.10827932]
[1728778135347,0.008,63275.0,63274.0,0.20679682]
[1728778138340,0.008,63275.0,63274.0,0.21173948]
[1728778138542,0.00237124,63280.0,63274.0,0.21173948]
[1728778138745,0.00237124,63280.0,63279.0,0.179427]
[1728778140551,0.01537124,63280.0,63279.0,0.179427]
[1728778141352,0.01237124,63280.0,63279.0,0.179427]
[1728778141563,0.01237124,63280.0,63279.0,0.180427]
[1728778141564,0.02037124,63280.0,63279.0,0.180427]
[1728778142259,0.3608,63288.0,63287.0,0.079017]
[1728778142569,0.07901,63292.0,63291.0,0.079012]
[1728778142859,0.07901,63292.0,63291.0,0.179412]
[1728778143765,0.08137837,63294.0,63293.0,0.079009]
[1728778143951,0.08137837,63294.0,63293.0,0.079409]
[1728778144376,0.00237037,63294.0,63293.0,0.079409]
[1728778144764,0.0316,63299.0,63293.0,0.079409]
[1728778144953,0.0316,63299.0,63298.0,0.079403]
[1728778145356,0.110602,63299.0,63298.0,0.079403]
[1728778145749,0.079002,63299.0,63298.0,0.079403]
[1728778146153,0.3608,63302.0,63298.0,0.0004]
[1728778146357,0.3608,63302.0,63301.0,0.1004]